fUSD/lending_fUSD_20240422
["ID","MTS","AMOUNT","RATE_DAILY","PERIOD"]
[323193691,1713797468200,-868.84,0.00014246,2]
[323193692,1713797468209,-775.71,0.00014246,2]
[323193693,1713797468220,-500.0,0.00014246,2]
[323193694,1713797468229,-500.0,0.00014246,2]
[323193695,1713797468238,-1175.08,0.00014246,2]
[323193696,1713797468248,-711.05,0.00014246,2]
[323193697,1713797468258,-4078.28,0.00014246,2]
[323193698,1713797468267,-1766.64,0.00014246,2]
[323193699,1713797468277,-500.0,0.00014246,2]
[323193700,1713797468286,-727.32,0.00014246,2]
[323193701,1713797468296,-500.0,0.00014246,2]
[323193702,1713797468305,-500.0,0.00014246,2]
[323193703,1713797468318,-545.64,0.00014246,2]
[323193704,1713797468327,-500.0,0.00014246,2]
[323193705,1713797468337,-770.88,0.00014246,2]
[323193706,1713797468347,-500.0,0.00014246,2]
[323193707,1713797468357,-566.54,0.00014246,2]
[323193708,1713797468366,-2213.29,0.00014246,2]
[323193709,1713797468376,-500.0,0.00014246,2]
[323193710,1713797468386,-1806.26,0.00014246,2]
[323193711,1713797468396,-500.0,0.00014246,2]
[323193712,1713797468406,-500.0,0.00014246,2]
[323193713,1713797468415,-954.95,0.00014246,2]
[323193714,1713797468424,-514.67,0.00014246,2]
[323193715,1713797468433,-1514.0,0.00014246,2]
[323193716,1713797468442,-500.0,0.00014246,2]
[323193717,1713797468452,-500.0,0.00014246,2]
[323193718,1713797468461,-500.0,0.00014246,2]
[323193719,1713797468470,-500.0,0.00014246,2]
[323193720,1713797468479,-2643.99,0.00014246,2]
[323193721,1713797468488,-500.0,0.00014246,2]
[323193722,1713797468498,-652.18,0.00014246,2]
[323193723,1713797468508,-500.0,0.00014246,2]
[323193724,1713797468518,-1023.82,0.00014246,2]
[323193725,1713797468528,-500.0,0.00014246,2]
[323193726,1713797468537,-1778.99,0.00014246,2]
[323193727,1713797468546,-500.0,0.00014246,2]
[323193728,1713797468555,-1372.48,0.00014246,2]
[323193729,1713797468567,-553.45,0.00014246,2]
[323193730,1713797468576,-2340.41,0.00014246,2]
[323193731,1713797468586,-1069.65,0.00014246,2]
[323193732,1713797468596,-500.0,0.00014246,2]
[323193733,1713797468606,-1348.77,0.00014246,2]
[323193734,1713797468615,-500.0,0.00014246,2]
[323193735,1713797468624,-1083.12,0.00014246,2]
[323193736,1713797468633,-500.15,0.00014246,2]
[323193737,1713797468644,-709.52,0.00014246,2]
[323193738,1713797468653,-500.0,0.00014246,2]
[323193739,1713797468663,-500.0,0.00014246,2]
[323193740,1713797468674,-826.29,0.00014246,2]
[323193741,1713797468684,-531.28,0.00014246,2]
[323193742,1713797468693,-1106.5,0.00014246,2]
[323193743,1713797468702,-500.0,0.00014246,2]
[323193744,1713797468712,-4246.76,0.00014246,2]
[323193745,1713797468721,-500.0,0.00014246,2]
[323193746,1713797468730,-500.0,0.00014246,2]
[323193747,1713797468739,-1751.5,0.00014246,2]
[323193748,1713797468748,-612.07,0.00014246,2]
[323193749,1713797468758,-500.0,0.00014246,2]
[323193750,1713797468770,-500.0,0.00014246,2]
[323193751,1713797468779,-500.0,0.00014246,2]
[323193752,1713797468788,-500.0,0.00014246,2]
[323193753,1713797468804,-500.0,0.00014246,2]
[323193754,1713797468816,-500.0,0.00014246,2]
[323193755,1713797468830,-870.5,0.00014246,2]
[323193756,1713797468840,-1667.86,0.00014246,2]
[323193757,1713797468850,-500.0,0.00014246,2]
[323193758,1713797468860,-600.51,0.00014246,2]
[323193759,1713797468869,-500.0,0.00014246,2]
[323193760,1713797468882,-500.0,0.00014246,2]
[323193761,1713797468893,-500.0,0.00014246,2]
[323193762,1713797468903,-545.9,0.00014246,2]
[323193763,1713797468912,-500.0,0.00014246,2]
[323193764,1713797468924,-500.0,0.00014246,2]
[323193765,1713797468942,-500.0,0.00014246,2]
[323193766,1713797468954,-3064.76,0.00014246,2]
[323193767,1713797468963,-774.13,0.00014246,2]
[323193768,1713797468980,-2274.23,0.00014246,2]
[323193769,1713797468990,-951.54,0.00014246,2]
[323193770,1713797468999,-575.84,0.00014246,2]
[323193771,1713797469008,-500.0,0.00014246,2]
[323193772,1713797469019,-500.0,0.00014246,2]
[323193773,1713797469029,-1103.5,0.00014246,2]
[323193774,1713797469038,-500.0,0.00014246,2]
[323193775,1713797469047,-532.9,0.00014246,2]
[323193776,1713797469056,-890.6,0.00014246,2]
[323193777,1713797469069,-1138.62,0.00014246,2]
[323193778,1713797469078,-2363.25,0.00014246,2]
[323193779,1713797469096,-630.94,0.00014246,2]
[323193780,1713797469105,-779.52,0.00014246,2]
[323193781,1713797469114,-500.0,0.00014246,2]
[323193782,1713797469124,-500.0,0.00014246,2]
[323193783,1713797469133,-500.0,0.00014246,2]
[323193784,1713797469142,-500.0,0.00014246,2]
[323193785,1713797469151,-5475.8,0.00014246,2]
[323193786,1713797469161,-500.0,0.00014246,2]
[323193787,1713797469170,-902.47,0.00014246,2]
[323193788,1713797469179,-1969.65,0.00014246,2]
[323193789,1713797469189,-500.0,0.00014246,2]
[323193790,1713797469199,-757.26,0.00014246,2]
[323193791,1713797469209,-2831.92,0.00014246,2]
[323193792,1713797469218,-317.52582832,0.00014246,2]
[323193793,1713797469227,-955.57,0.00014246,2]
[323193794,1713797469236,-738.18,0.00014246,2]
[323193795,1713797469246,-532.11,0.00014246,2]
[323193796,1713797469255,-500.0,0.00014246,2]
[323193797,1713797469264,-500.0,0.00014246,2]
[323193798,1713797469273,-500.0,0.00014246,2]
[323193799,1713797469293,-500.0,0.00014246,2]
[323193800,1713797469305,-151.0,0.00014246,2]
[323193801,1713797469316,-2308.67,0.00014246,2]
[323193802,1713797469328,-4698.45,0.00014246,2]
[323193803,1713797469339,-2077.11,0.00014246,2]
[323193804,1713797469350,-771.72,0.00014246,2]
[323193805,1713797469360,-500.0,0.00014246,2]
[323193806,1713797469370,-1149.61,0.00014246,2]
[323193807,1713797469379,-500.0,0.00014246,2]
[323193808,1713797469389,-969.06,0.00014246,2]
[323193809,1713797469398,-500.0,0.00014246,2]
[323193810,1713797469408,-712.0,0.00014246,2]
[323193811,1713797469418,-3207.73,0.00014246,2]
[323193812,1713797469428,-1369.62,0.00014246,2]
[323193813,1713797469438,-500.0,0.00014246,2]
[323193814,1713797469448,-1819.53,0.00014246,2]
[323193815,1713797469458,-5208.32,0.00014246,2]
[323193816,1713797469468,-655.71,0.00014246,2]
[323193817,1713797469477,-1414.2,0.00014246,2]
[323193818,1713797469487,-2936.96,0.00014246,2]
[323193819,1713797469514,-2067.8,0.00014246,2]
[323193820,1713797469524,-500.0,0.00014246,2]
[323193821,1713797469534,-500.0,0.00014246,2]
[323193822,1713797469551,-500.0,0.00014246,2]
[323193823,1713797469568,-69179.36,0.00014246,2]
[323193824,1713797469583,-811.57,0.00014246,2]
[323193825,1713797469593,-500.0,0.00014246,2]
[323193826,1713797469605,-500.0,0.00014246,2]
[323193827,1713797469614,-500.0,0.00014246,2]
[323193828,1713797469632,-1603.89,0.00014246,2]
[323193829,1713797469647,-952.4,0.00014246,2]
[323193830,1713797469659,-1787.37,0.00014246,2]
[323193831,1713797469669,-686.32,0.00014246,2]
[323193832,1713797469680,-5373.75,0.00014246,2]
[323193833,1713797469691,-905.67,0.00014246,2]
[323193834,1713797469704,-6921.97,0.00014246,2]
[323193835,1713797469714,-500.0,0.00014246,2]
[323193836,1713797469737,-628.49,0.00014246,2]
[323193837,1713797469747,-1983.07,0.00014246,2]
[323193838,1713797469758,-518.83,0.00014246,2]
[323193839,1713797469767,-10845.59,0.00014246,2]
[323193840,1713797469777,-500.0,0.00014246,2]
[323193841,1713797469787,-3656.94,0.00014246,2]
[323193842,1713797469796,-515.26,0.00014246,2]
[323193843,1713797469806,-500.0,0.00014246,2]
[323193844,1713797469818,-500.0,0.00014246,2]
[323193845,1713797469828,-500.0,0.00014246,2]
[323193846,1713797469838,-5769.73,0.00014246,2]
[323193847,1713797469848,-500.0,0.00014246,2]
[323193848,1713797469858,-1345.69,0.00014246,2]
[323193849,1713797469868,-1704.44,0.00014246,2]
[323193850,1713797469877,-5597.29,0.00014246,2]
[323193851,1713797469887,-2331.63,0.00014246,2]
[323193852,1713797469897,-843.0,0.00014246,2]
[323193853,1713797469908,-659.35,0.00014246,2]
[323193854,1713797469917,-500.0,0.00014246,2]
[323193855,1713797469927,-500.0,0.00014246,2]
[323193856,1713797469936,-5196.97,0.00014246,2]
[323193857,1713797469946,-661.43,0.00014246,2]
[323193858,1713797469955,-2206.69,0.00014246,2]
[323193859,1713797469964,-500.0,0.00014246,2]
[323193860,1713797469974,-1484.46,0.00014246,2]
[323193861,1713797469983,-5463.52,0.00014246,2]
[323193862,1713797469993,-1380.04,0.00014246,2]
[323193863,1713797470003,-10383.69,0.00014246,2]
[323193864,1713797470013,-2091.4,0.00014246,2]
[323193865,1713797470022,-1474.61,0.00014246,2]
[323193866,1713797470033,-5275.76,0.00014246,2]
[323193867,1713797470043,-9323.5,0.00014246,2]
[323193868,1713797470053,-500.0,0.00014246,2]
[323193869,1713797470064,-500.0,0.00014246,2]
[323193870,1713797470073,-500.0,0.00014246,2]
[323193871,1713797470082,-2347.11,0.00014246,2]
[323193872,1713797470092,-1047.22,0.00014246,2]
[323193873,1713797470101,-500.0,0.00014246,2]
[323193874,1713797470111,-3549.56,0.00014246,2]
[323193875,1713797470121,-584.96,0.00014246,2]
[323193876,1713797470131,-500.0,0.00014246,2]
[323193877,1713797470142,-890.51,0.00014246,2]
[323193878,1713797470153,-500.0,0.00014246,2]
[323193879,1713797470164,-1550.13,0.00014246,2]
[323193880,1713797470173,-527.08,0.00014246,2]
[323193881,1713797470184,-3055.38,0.00014246,2]
[323193882,1713797470194,-7007.74,0.00014246,2]
[323193883,1713797470204,-729.2,0.00014246,2]
[323193884,1713797470214,-2244.29,0.00014246,2]
[323193885,1713797470224,-1728.24,0.00014246,2]
[323193886,1713797470234,-500.0,0.00014246,2]
[323193887,1713797470245,-379.44,0.00014246,2]
[323193888,1713797470254,-747.6,0.00014246,2]
[323193889,1713797470264,-500.0,0.00014246,2]
[323193890,1713797470274,-500.0,0.00014246,2]
[323193891,1713797470284,-3390.77,0.00014246,2]
[323193892,1713797470294,-1168.79,0.00014246,2]
[323193893,1713797470303,-1925.74,0.00014246,2]
[323193894,1713797470314,-500.0,0.00014246,2]
[323193895,1713797470324,-10994.45,0.00014246,2]
[323193896,1713797470334,-784.66,0.00014246,2]
[323193897,1713797470344,-34637.6,0.00014246,2]
[323193898,1713797470353,-12295.13,0.00014246,2]
[323193899,1713797470363,-679.03,0.00014246,2]
[323193900,1713797470373,-516.71,0.00014246,2]
[323193901,1713797470382,-500.0,0.00014246,2]
[323193902,1713797470392,-897.24,0.00014246,2]
[323193903,1713797470402,-820.66,0.00014246,2]
[323193904,1713797470412,-500.0,0.00014246,2]
[323193905,1713797470422,-6065.67,0.00014246,2]
[323193906,1713797470431,-500.0,0.00014246,2]
[323193907,1713797470441,-667.8,0.00014246,2]
[323193908,1713797470451,-500.0,0.00014246,2]
[323193909,1713797470461,-545.75,0.00014246,2]
[323193910,1713797470470,-2731.54,0.00014246,2]
[323193911,1713797470480,-500.0,0.00014246,2]
[323193912,1713797470490,-2860.73,0.00014246,2]
[323193913,1713797470500,-1194.7,0.00014246,2]
[323193914,1713797470510,-500.0,0.00014246,2]
[323193915,1713797470519,-500.0,0.00014246,2]
[323193916,1713797470529,-1803.55,0.00014246,2]
[323193917,1713797470539,-830.47,0.00014246,2]
[323193918,1713797470549,-500.0,0.00014246,2]
[323193919,1713797470558,-64780.77,0.00014246,2]
[323193920,1713797470569,-2104.78,0.00014246,2]
[323193921,1713797470581,-5651.1,0.00014246,2]
[323193922,1713797470589,-79675.89,0.00014246,2]
[323193923,1713797470599,-500.0,0.00014246,2]
[323193924,1713797470610,-500.0,0.00014246,2]
[323193925,1713797470620,-500.0,0.00014246,2]
[323193926,1713797470629,-500.0,0.00014246,2]
[323193927,1713797470638,-500.0,0.00014246,2]
[323193928,1713797470648,-500.0,0.00014246,2]
[323193929,1713797470658,-658.09,0.00014246,2]
[323193930,1713797470668,-2020.93,0.00014246,2]
[323193931,1713797470677,-500.0,0.00014246,2]
[323193932,1713797470687,-500.0,0.00014246,2]
[323193933,1713797470697,-1807.6,0.00014246,2]
[323193934,1713797470707,-500.0,0.00014246,2]
[323193935,1713797470717,-736.9,0.00014246,2]
[323193936,1713797470726,-764.39,0.00014246,2]
[323193937,1713797470735,-6354.44,0.00014246,2]
[323193938,1713797470746,-500.0,0.00014246,2]
[323193939,1713797470756,-1658.98,0.00014246,2]
[323193940,1713797470765,-708.16,0.00014246,2]
[323193941,1713797470775,-3844.78,0.00014246,2]
[323193942,1713797470784,-917.07,0.00014246,2]
[323193943,1713797470794,-615.31,0.00014246,2]
[323193944,1713797470803,-3079.34,0.00014246,2]
[323193945,1713797470814,-500.0,0.00014246,2]
[323193946,1713797470823,-500.0,0.00014246,2]
[323193947,1713797470833,-651.75,0.00014246,2]
[323193948,1713797470843,-2305.84,0.00014246,2]
[323193949,1713797470853,-3070.14,0.00014246,2]
[323193950,1713797470862,-1019.32,0.00014246,2]
[323193951,1713797470872,-500.0,0.00014246,2]
[323193952,1713797470882,-988.29,0.00014246,2]
[323193953,1713797470891,-4505.91,0.00014246,2]
[323193954,1713797470901,-986.78,0.00014246,2]
[323193955,1713797470911,-611.51,0.00014246,2]
[323193956,1713797470920,-6183.11,0.00014246,2]
[323193957,1713797470930,-500.0,0.00014246,2]
[323193958,1713797470939,-500.0,0.00014246,2]
[323193959,1713797470949,-500.0,0.00014246,2]
[323193960,1713797470959,-500.0,0.00014246,2]
[323193961,1713797470969,-500.0,0.00014246,2]
[323193962,1713797470979,-11533.71,0.00014246,2]
[323193963,1713797470988,-1145.7,0.00014246,2]
[323193964,1713797470998,-1641.84,0.00014246,2]
[323193965,1713797471008,-500.0,0.00014246,2]
[323193966,1713797471017,-500.0,0.00014246,2]
[323193967,1713797471027,-500.0,0.00014246,2]
[323193968,1713797471037,-1159.21,0.00014246,2]
[323193969,1713797471047,-1325.3,0.00014246,2]
[323193970,1713797471057,-500.0,0.00014246,2]
[323193971,1713797471068,-1164.27,0.00014246,2]
[323193972,1713797471077,-4822.32,0.00014246,2]
[323193973,1713797471086,-14377.72,0.00014246,2]
[323193974,1713797471096,-6053.6,0.00014246,2]
[323193975,1713797471106,-11251.61,0.00014246,2]
[323193976,1713797471116,-951.27,0.00014246,2]
[323193977,1713797471126,-1233.77,0.00014246,2]
[323193978,1713797471136,-32709.43,0.00014246,2]
[323193979,1713797471145,-1562.31,0.00014246,2]
[323193980,1713797471155,-500.0,0.00014246,2]
[323193981,1713797471165,-500.0,0.00014246,2]
[323193982,1713797471175,-500.0,0.00014246,2]
[323193983,1713797471185,-1086.39,0.00014246,2]
[323193984,1713797471194,-500.0,0.00014246,2]
[323193985,1713797471204,-5943.65,0.00014246,2]
[323193986,1713797471214,-1338.67,0.00014246,2]
[323193987,1713797471224,-4887.97,0.00014246,2]
[323193988,1713797471234,-1780.6,0.00014246,2]
[323193989,1713797471244,-241.24,0.00014246,2]
[323193990,1713797471254,-1090.31,0.00014246,2]
[323193991,1713797471264,-867.74,0.00014246,2]
[323193992,1713797471274,-4768.44,0.00014246,2]
[323193993,1713797471283,-813.01,0.00014246,2]
[323193994,1713797471294,-7790.44,0.00014246,2]
[323193995,1713797471304,-1221.45,0.00014246,2]
[323193996,1713797471314,-1937.81,0.00014246,2]
[323193997,1713797471324,-2727.88,0.00014246,2]
[323193998,1713797471334,-46764.76,0.00014246,2]
[323193999,1713797471345,-500.0,0.00014246,2]
[323194000,1713797471355,-8189.99,0.00014246,2]
[323194001,1713797471365,-2865.01,0.00014246,2]
[323194002,1713797471375,-549.58,0.00014246,2]
[323194003,1713797471385,-514.2,0.00014246,2]
[323194004,1713797471396,-1456.95,0.00014246,2]
[323194005,1713797471406,-500.0,0.00014246,2]
[323194006,1713797471675,-7127.21,0.00014246,2]
[323194007,1713797471686,-500.0,0.00014246,2]
[323194008,1713797471695,-500.0,0.00014246,2]
[323194009,1713797471705,-3215.57,0.00014246,2]
[323194010,1713797471715,-1438.96,0.00014246,2]
[323194011,1713797471725,-8203.4,0.00014246,2]
[323194012,1713797471734,-2563.41,0.00014246,2]
[323194013,1713797471743,-1220.07,0.00014246,2]
[323194014,1713797471753,-500.0,0.00014246,2]
[323194015,1713797471764,-1067.05,0.00014246,2]
[323194016,1713797471774,-673.67,0.00014246,2]
[323194017,1713797471784,-162.41,0.00014246,2]
[323194018,1713797471793,-2801.0,0.00014246,2]
[323194019,1713797471803,-4371.4,0.00014246,2]
[323194020,1713797471813,-844.72,0.00014246,2]
[323194021,1713797471822,-7232.17,0.00014246,2]
[323194022,1713797471836,-500.0,0.00014246,2]
[323194023,1713797471846,-500.0,0.00014246,2]
[323194024,1713797471855,-246.62500639,0.00014246,2]
[323194025,1713797471866,-500.0,0.00014246,2]
[323194026,1713797471875,-1935.55,0.00014246,2]
[323194027,1713797471885,-6999.61,0.00014246,2]
[323194028,1713797471894,-556.01,0.00014246,2]
[323194029,1713797471904,-979.3,0.00014246,2]
[323194030,1713797471914,-14864.94,0.00014246,2]
[323194031,1713797471924,-10066.49,0.00014246,2]
[323194032,1713797471934,-505.4,0.00014246,2]
[323194033,1713797471944,-3496.47,0.00014246,2]
[323194034,1713797471953,-1521.83,0.00014246,2]
[323194035,1713797471962,-500.0,0.00014246,2]
[323194036,1713797471973,-1524.33,0.00014246,2]
[323194037,1713797471983,-2158.9,0.00014246,2]
[323194038,1713797471992,-2346.41,0.00014246,2]
[323194039,1713797472002,-500.0,0.00014246,2]
[323194040,1713797472012,-500.0,0.00014246,2]
[323194041,1713797472022,-500.0,0.00014246,2]
[323194042,1713797472031,-5254.57,0.00014246,2]
[323194043,1713797472040,-2027.35,0.00014246,2]
[323194044,1713797472050,-500.0,0.00014246,2]
[323194045,1713797472061,-500.0,0.00014246,2]
[323194046,1713797472074,-13479.64,0.00014246,2]
[323194047,1713797472084,-500.0,0.00014246,2]
[323194048,1713797472094,-171.0,0.00014246,2]
[323194049,1713797472103,-4866.68,0.00014246,2]
[323194050,1713797472113,-1885.97,0.00014246,2]
[323194051,1713797472123,-2749.09,0.00014246,2]
[323194052,1713797472132,-2633.93,0.00014246,2]
[323194053,1713797472142,-625.34,0.00014246,2]
[323194054,1713797472152,-5300.49,0.00014246,2]
[323194055,1713797472162,-500.0,0.00014246,2]
[323194056,1713797472172,-500.0,0.00014246,2]
[323194057,1713797472182,-5260.34,0.00014246,2]
[323194058,1713797472191,-1044.08,0.00014246,2]
[323194059,1713797472201,-1540.55,0.00014246,2]
[323194060,1713797472211,-4252.28,0.00014246,2]
[323194061,1713797472221,-894.47,0.00014246,2]
[323194062,1713797472230,-500.0,0.00014246,2]
[323194063,1713797472240,-500.0,0.00014246,2]
[323194064,1713797472249,-500.0,0.00014246,2]
[323194065,1713797472260,-504.1,0.00014246,2]
[323194066,1713797472269,-500.0,0.00014246,2]
[323194067,1713797472279,-1813.46,0.00014246,2]
[323194068,1713797472289,-2213.32,0.00014246,2]
[323194069,1713797472298,-596.13,0.00014246,2]
[323194070,1713797472309,-839.93,0.00014246,2]
[323194071,1713797472320,-1002.67,0.00014246,2]
[323194072,1713797472328,-9486.21,0.00014246,2]
[323194073,1713797472338,-1037.9,0.00014246,2]
[323194074,1713797472347,-4761.65,0.00014246,2]
[323194075,1713797472356,-1348.75,0.00014246,2]
[323194076,1713797472366,-4693.38,0.00014246,2]
[323194077,1713797472375,-500.0,0.00014246,2]
[323194078,1713797472385,-1110.47,0.00014246,2]
[323194079,1713797472395,-500.0,0.00014246,2]
[323194080,1713797472404,-500.0,0.00014246,2]
[323194081,1713797472416,-2003.35,0.00014246,2]
[323194082,1713797472426,-4012.83,0.00014246,2]
[323194083,1713797472436,-1178.6,0.00014246,2]
[323194084,1713797472447,-6308.19,0.00014246,2]
[323194085,1713797472456,-11121.19,0.00014246,2]
[323194086,1713797472466,-13403.19,0.00014246,2]
[323194087,1713797472476,-7567.9,0.00014246,2]
[323194088,1713797472486,-2249.41,0.00014246,2]
[323194089,1713797472497,-500.0,0.00014246,2]
[323194090,1713797472507,-722.9,0.00014246,2]
[323194091,1713797472517,-500.0,0.00014246,2]
[323194092,1713797472527,-500.0,0.00014246,2]
[323194093,1713797472537,-2661.64,0.00014246,2]
[323194094,1713797472547,-552.22551336,0.00014246,2]
[323194095,1713797472557,-500.0,0.00014246,2]
[323194096,1713797472570,-151.0,0.00014246,2]
[323194097,1713797472582,-2137.6,0.00014246,2]
[323194098,1713797472592,-500.0,0.00014246,2]
[323194099,1713797472601,-500.0,0.00014246,2]
[323194100,1713797472611,-500.0,0.00014246,2]
[323194101,1713797472622,-500.0,0.00014246,2]
[323194102,1713797472631,-500.0,0.00014246,2]
[323194103,1713797472640,-500.0,0.00014246,2]
[323194104,1713797472650,-4533.07,0.00014246,2]
[323194105,1713797472660,-2786.13,0.00014246,2]
[323194106,1713797472670,-14256.45,0.00014246,2]
[323194107,1713797472680,-500.0,0.00014246,2]
[323194108,1713797472690,-500.0,0.00014246,2]
[323194109,1713797472700,-5081.1,0.00014246,2]
[323194110,1713797472709,-2003.06,0.00014246,2]
[323194111,1713797472718,-500.0,0.00014246,2]
[323194112,1713797472728,-500.0,0.00014246,2]
[323194113,1713797472737,-2440.14,0.00014246,2]
[323194114,1713797472747,-560.73678462,0.00014246,2]
[323194115,1713797472757,-500.0,0.00014246,2]
[323194116,1713797472766,-15461.58,0.00014246,2]
[323194117,1713797472776,-1819.4,0.00014246,2]
[323194118,1713797472785,-500.0,0.00014246,2]
[323194119,1713797472795,-500.0,0.00014246,2]
[323194120,1713797472804,-8191.28,0.00014246,2]
[323194121,1713797472814,-500.0,0.00014246,2]
[323194122,1713797472823,-1932.99,0.00014246,2]
[323194123,1713797472833,-500.0,0.00014246,2]
[323194124,1713797472842,-12934.42,0.00014246,2]
[323194125,1713797472852,-500.0,0.00014246,2]
[323194126,1713797472861,-556.84,0.00014246,2]
[323194127,1713797472871,-3301.45,0.00014246,2]
[323194128,1713797472880,-879.25,0.00014246,2]
[323194129,1713797472890,-168.05587742,0.00014246,2]
[323194130,1713797472899,-5258.15,0.00014246,2]
[323194131,1713797472909,-500.0,0.00014246,2]
[323194132,1713797472919,-2132.9,0.00014246,2]
[323194133,1713797472928,-569.03,0.00014246,2]
[323194134,1713797472937,-500.0,0.00014246,2]
[323194135,1713797472946,-2994.32,0.00014246,2]
[323194136,1713797472956,-500.0,0.00014246,2]
[323194137,1713797472966,-8841.47,0.00014246,2]
[323194138,1713797472976,-500.0,0.00014246,2]
[323194139,1713797472986,-1378.88,0.00014246,2]
[323194140,1713797472996,-500.0,0.00014246,2]
[323194141,1713797473005,-500.0,0.00014246,2]
[323194142,1713797473018,-626.26,0.00014246,2]
[323194143,1713797473028,-500.0,0.00014246,2]
[323194144,1713797473038,-178.8,0.00014246,2]
[323194145,1713797473048,-14139.56,0.00014246,2]
[323194146,1713797473058,-787.61,0.00014246,2]
[323194147,1713797473069,-3605.85,0.00014246,2]
[323194148,1713797473078,-500.0,0.00014246,2]
[323194149,1713797473088,-500.0,0.00014246,2]
[323194150,1713797473097,-2961.16,0.00014246,2]
[323194151,1713797473107,-500.0,0.00014246,2]
[323194152,1713797473117,-2146.41,0.00014246,2]
[323194153,1713797473126,-1045.01,0.00014246,2]
[323194154,1713797473136,-4363.81,0.00014246,2]
[323194155,1713797473145,-500.0,0.00014246,2]
[323194156,1713797473155,-500.0,0.00014246,2]
[323194157,1713797473164,-1166.01,0.00014246,2]
[323194158,1713797473173,-1461.88,0.00014246,2]
[323194159,1713797473183,-500.0,0.00014246,2]
[323194160,1713797473192,-932.02,0.00014246,2]
[323194161,1713797473201,-2792.31,0.00014246,2]
[323194162,1713797473211,-878.31,0.00014246,2]
[323194163,1713797473221,-500.0,0.00014246,2]
[323194164,1713797473231,-11007.8,0.00014246,2]
[323194165,1713797473241,-761.46,0.00014246,2]
[323194166,1713797473251,-8334.91,0.00014246,2]
[323194167,1713797473260,-5311.23,0.00014246,2]
[323194168,1713797473269,-2088.65,0.00014246,2]
[323194169,1713797473279,-9648.21,0.00014246,2]
[323194170,1713797473288,-16486.37,0.00014246,2]
[323194171,1713797473298,-866.35,0.00014246,2]
[323194172,1713797473307,-570.06,0.00014246,2]
[323194173,1713797473317,-516.62,0.00014246,2]
[323194174,1713797473328,-500.0,0.00014246,2]
[323194175,1713797473338,-884.07,0.00014246,2]
[323194176,1713797473347,-590.26,0.00014246,2]
[323194177,1713797473356,-690.88,0.00014246,2]
[323194178,1713797473365,-500.0,0.00014246,2]
[323194179,1713797473377,-500.0,0.00014246,2]
[323194180,1713797473390,-500.0,0.00014246,2]
[323194181,1713797473401,-20609.88,0.00014246,2]
[323194182,1713797473413,-500.0,0.00014246,2]
[323194183,1713797473423,-1499.59,0.00014246,2]
[323194184,1713797473433,-500.0,0.00014246,2]
[323194185,1713797473443,-7536.04,0.00014246,2]
[323194186,1713797473454,-500.0,0.00014246,2]
[323194187,1713797473466,-549.0,0.00014246,2]
[323194188,1713797473476,-1005.19,0.00014246,2]
[323194189,1713797473485,-956.77,0.00014246,2]
[323194190,1713797473495,-500.0,0.00014246,2]